bitfinex/quotes_BTCUSD_20250617
["timestamp","ask_amount","ask_price","bid_price","bid_amount"]
[1750196191026,0.57921554,104860.0,104850.0,0.27376]
[1750196191254,0.57921554,104860.0,104850.0,4e-05]
[1750196191663,0.57921554,104860.0,104850.0,0.27376]
[1750196192077,0.67343415,104860.0,104850.0,0.27376]
[1750196192288,0.67543415,104860.0,104850.0,0.27376]
[1750196192707,0.67643415,104860.0,104850.0,0.27376]
[1750196194442,0.67643007,104860.0,104850.0,4e-05]
[1750196195067,0.67643007,104860.0,104850.0,0.27376]
[1750196195904,0.67643007,104860.0,104850.0,4e-05]
[1750196196118,0.67643007,104860.0,104850.0,0.27376]
[1750196196749,0.67643007,104860.0,104850.0,4e-05]
[1750196197169,0.67643007,104860.0,104850.0,0.27376]
[1750196197379,0.658557,104860.0,104850.0,4e-05]
[1750196197594,0.67641602,104860.0,104850.0,0.27376]
[1750196197812,0.67641522,104860.0,104850.0,0.27376]
[1750196198025,0.67641522,104860.0,104850.0,0.22916]
[1750196198244,0.67641522,104860.0,104850.0,4e-05]
[1750196198482,0.67641522,104860.0,104850.0,0.27376]
[1750196201082,0.68374772,104860.0,104850.0,0.27376]
[1750196201297,0.58952911,104860.0,104850.0,0.27376]
[1750196201513,0.58952967,104860.0,104850.0,0.27376]
[1750196201730,0.38677893,104860.0,104850.0,0.27376]
[1750196202140,0.57750942,104860.0,104850.0,0.27376]
[1750196202586,0.59658183,104860.0,104850.0,0.27376]
[1750196202802,0.59658183,104860.0,104850.0,0.22916]
[1750196203020,0.59658183,104860.0,104850.0,0.27376]
[1750196203511,0.59658593,104860.0,104850.0,0.27376]
[1750196204348,0.59658909,104860.0,104850.0,0.27376]
[1750196204775,0.59659657,104860.0,104850.0,0.27376]
[1750196205415,0.69274579,104860.0,104850.0,0.27376]
[1750196205631,0.59659657,104860.0,104850.0,0.27376]
[1750196207520,0.56389657,104860.0,104850.0,0.27376]
[1750196208500,0.56389705,104860.0,104850.0,0.27376]
[1750196210737,0.56389844,104860.0,104850.0,0.27376]
[1750196211290,0.66004766,104860.0,104850.0,0.27376]
[1750196211912,0.6600517,104860.0,104850.0,0.27376]
[1750196213390,0.6600517,104860.0,104850.0,0.22916]
[1750196213612,0.66005324,104860.0,104850.0,0.27352]
[1750196213864,0.66005495,104860.0,104850.0,0.27352]
[1750196214290,0.66005682,104860.0,104850.0,0.27352]
[1750196214750,0.66005682,104860.0,104850.0,0.26731411]
[1750196215407,0.5639076,104860.0,104850.0,0.26731411]
[1750196216728,0.7139076,104860.0,104850.0,0.22295411]
[1750196216943,0.91980153,104860.0,104850.0,0.17455889]
[1750196217160,0.91980153,104860.0,104850.0,0.21891889]
[1750196217378,0.8969076,104860.0,104850.0,0.21891889]
[1750196217587,0.54984292,104840.0,104830.0,0.0642]
[1750196217802,0.57665842,104840.0,104830.0,0.16044176]
[1750196218005,0.57665842,104840.0,104830.0,0.43396176]
[1750196218210,0.59007556,104840.0,104830.0,0.43396176]
[1750196218424,0.59008854,104840.0,104830.0,0.16044176]
[1750196218714,0.59008854,104840.0,104830.0,0.43396176]
[1750196218870,0.59008854,104840.0,104830.0,0.16244176]
[1750196219128,0.68516316,104840.0,104830.0,0.39160176]
[1750196219349,0.68516316,104840.0,104830.0,0.33972]
[1750196219795,0.68516316,104840.0,104830.0,0.27752]
[1750196220245,0.68516316,104840.0,104830.0,0.27552]
[1750196220684,0.68516316,104840.0,104830.0,0.27352]
[1750196221102,0.71706316,104840.0,104830.0,0.27352]
[1750196221347,0.71704362,104840.0,104830.0,0.27352]
[1750196221791,0.7170381,104840.0,104830.0,0.27352]
[1750196223116,0.74621276,104840.0,104830.0,0.27352]
[1750196223339,0.71431276,104840.0,104830.0,0.27352]
[1750196223978,0.71631276,104840.0,104830.0,0.22916]
[1750196224192,0.74880463,104840.0,104830.0,0.27356]
[1750196225256,0.74880411,104840.0,104830.0,0.27356]
[1750196226538,0.73094263,104840.0,104830.0,0.27356]
[1750196226759,0.74880137,104840.0,104830.0,0.27356]
[1750196227185,0.74878475,104840.0,104830.0,0.27356]
[1750196227394,0.71628475,104840.0,104830.0,0.27356]
[1750196227825,0.87876475,104840.0,104830.0,0.27356]
[1750196228036,0.86983569,104840.0,104830.0,0.33716]
[1750196228254,0.87876337,104840.0,104830.0,0.33716]
[1750196229095,0.62120875,104840.0,104830.0,0.33716]
[1750196229308,0.78368875,104840.0,104830.0,0.33716]
[1750196229532,0.62120875,104840.0,104830.0,0.62418684]
[1750196229752,0.41136583,104840.0,104830.0,0.66734435]
[1750196229965,0.41420173,104840.0,104830.0,0.66734435]
[1750196230190,0.06466412,104840.0,104830.0,0.66734435]
[1750196230624,0.07420164,104840.0,104830.0,0.66734435]
[1750196230859,0.07220164,104840.0,104830.0,0.66734435]
[1750196231498,0.06266412,104840.0,104830.0,0.66734435]
[1750196231714,0.06266412,104840.0,104830.0,0.66934435]
[1750196231918,0.06266412,104840.0,104830.0,0.67034435]
[1750196232553,0.07220173,104840.0,104830.0,0.67034435]
[1750196232763,0.07220006,104840.0,104830.0,0.67034435]
[1750196232970,0.07220006,104840.0,104830.0,0.66934435]
[1750196233171,0.06266245,104840.0,104830.0,0.66934435]
[1750196233393,0.06266245,104840.0,104830.0,0.67134435]
[1750196233612,0.07220015,104840.0,104830.0,0.67134435]
[1750196234192,0.08173813,104840.0,104830.0,0.67134435]
[1750196234413,0.08173803,104840.0,104830.0,0.67134435]
[1750196235323,0.07220015,104840.0,104830.0,0.67134435]
[1750196235629,0.07219805,104840.0,104830.0,0.67134435]
[1750196236378,0.08173593,104840.0,104830.0,0.67134435]
[1750196236613,0.07219782,104840.0,104830.0,0.67134435]
[1750196237297,0.04302316,104840.0,104830.0,0.67134435]
[1750196237536,0.03348546,104840.0,104830.0,1.37239707]
[1750196237773,0.01563458,104840.0,104830.0,1.37239707]
[1750196238013,0.00670857,104840.0,104830.0,1.37239707]
[1750196238239,0.0073325,104850.0,104840.0,0.23392166]
[1750196238483,0.01625562,104850.0,104840.0,0.96877614]
[1750196239193,0.01625562,104850.0,104840.0,0.55882342]
[1750196239644,0.01625562,104850.0,104840.0,0.96877614]
[1750196240307,0.01625562,104850.0,104840.0,0.97077614]
[1750196241040,0.01625562,104850.0,104840.0,0.97177614]
[1750196241275,0.01625156,104850.0,104840.0,0.97177614]
[1750196242621,0.01625156,104850.0,104840.0,1.26287614]
[1750196244175,0.01624361,104850.0,104840.0,1.26287614]
[1750196245530,0.0073325,104850.0,104840.0,1.26287614]
[1750196247775,0.0073325,104850.0,104840.0,0.85292342]
[1750196247998,0.0073325,104850.0,104840.0,1.26287614]
[1750196249357,0.0073325,104850.0,104840.0,0.85292342]
[1750196249635,0.01907013,104870.0,104860.0,0.23387981]
[1750196249859,0.01911744,104870.0,104860.0,0.60096157]
[1750196250090,0.02801548,104870.0,104860.0,0.60096157]
[1750196250537,0.04708561,104870.0,104860.0,0.60096157]
[1750196250774,0.03755027,104870.0,104860.0,0.60096157]
[1750196251004,0.03855027,104870.0,104860.0,0.62613285]
[1750196251234,0.03855027,104870.0,104860.0,0.60096157]
[1750196251235,0.03855095,104870.0,104860.0,0.60096157]
[1750196251473,0.03855095,104870.0,104860.0,0.89206157]
[1750196251709,0.04808629,104870.0,104860.0,0.89206157]
[1750196251929,0.05862172,104870.0,104860.0,1.12118157]
[1750196252616,0.39863594,104870.0,104860.0,1.13067764]
[1750196252829,0.23667595,104870.0,104860.0,1.13067764]
[1750196253051,0.00953543,104870.0,104860.0,1.13067764]
[1750196253533,0.00953534,104870.0,104860.0,1.14021334]
[1750196253997,0.18004863,104880.0,104870.0,0.20024792]
[1750196254233,0.38077979,104880.0,104870.0,0.29648968]
[1750196254456,0.38077979,104880.0,104870.0,0.3060252]
[1750196254861,0.55853979,104880.0,104870.0,0.3060252]
[1750196255557,0.55953979,104880.0,104870.0,0.3060252]
[1750196256007,0.36881625,104880.0,104870.0,0.3692252]
[1750196256231,0.57030503,104880.0,104870.0,0.38829542]
[1750196256460,0.57987604,104880.0,104870.0,0.38829542]
[1750196256679,0.58941074,104880.0,104870.0,0.38829542]
[1750196257168,0.57030557,104880.0,104870.0,0.37876045]
[1750196257387,0.57030557,104880.0,104870.0,0.38829561]
[1750196257614,0.56930557,104880.0,104870.0,0.39783067]
[1750196258273,0.56930557,104880.0,104870.0,0.39783003]
[1750196258722,0.37861145,104880.0,104870.0,0.39783003]
[1750196259175,0.36907675,104880.0,104870.0,0.39783003]
[1750196259620,0.36930978,104880.0,104870.0,0.39783003]
[1750196259888,0.38837818,104880.0,104870.0,0.39783003]
[1750196261902,0.58860691,104880.0,104870.0,0.39783003]
[1750196262119,0.39791279,104880.0,104870.0,0.39783003]
[1750196263001,0.60644794,104880.0,104870.0,0.38829506]
[1750196263225,0.40621912,104880.0,104870.0,0.39783003]
[1750196263895,0.39668451,104880.0,104870.0,0.39783003]
[1750196264346,0.40621912,104880.0,104870.0,0.60415003]
[1750196264859,0.6125288,104880.0,104870.0,0.59461506]
[1750196265096,0.6220635,104880.0,104870.0,0.59461506]
[1750196266241,0.6220635,104880.0,104870.0,0.60415003]
[1750196266469,0.43136938,104880.0,104870.0,0.60415003]
[1750196266693,0.43137437,104880.0,104870.0,0.60415003]
[1750196266920,0.42183967,104880.0,104870.0,0.60415003]
[1750196267143,0.41230506,104880.0,104870.0,0.60415003]
[1750196267370,0.41232035,104880.0,104870.0,0.60415003]
[1750196268263,0.41232975,104880.0,104870.0,0.60415003]
[1750196270149,0.41233974,104880.0,104870.0,0.83323003]
[1750196270701,0.61256856,104880.0,104870.0,0.82369506]
[1750196270921,0.61256839,104880.0,104870.0,0.80462484]
[1750196271123,0.60304316,104880.0,104870.0,0.79842108]
[1750196271339,0.56953896,104880.0,104870.0,0.79842108]
[1750196271550,0.6030438,104880.0,104870.0,0.80795633]
[1750196271995,0.59350989,104880.0,104870.0,0.80795633]
[1750196272924,0.6881651,104880.0,104870.0,0.36331782]
[1750196273147,0.73169588,104880.0,104870.0,0.30981168]
[1750196273372,0.73169588,104880.0,104870.0,0.27312]
[1750196273592,0.73170126,104880.0,104870.0,0.26071048]
[1750196274002,0.73169853,104880.0,104870.0,0.21667048]
[1750196274220,0.88169853,104880.0,104870.0,0.21667048]
[1750196274439,0.9045783,104880.0,104870.0,0.26071048]
[1750196275278,0.9045783,104880.0,104870.0,0.21667048]
[1750196275486,0.9045783,104880.0,104870.0,0.26071048]
[1750196276353,0.89787482,104880.0,104870.0,0.26071048]
[1750196276586,0.90457661,104880.0,104870.0,0.26071048]
[1750196277828,1.06657661,104880.0,104870.0,0.26071048]
[1750196278041,0.7785214,104880.0,104870.0,0.26071048]
[1750196278254,0.94994163,104880.0,104870.0,0.26071048]
[1750196279307,0.94993575,104880.0,104870.0,0.26071048]
[1750196279751,0.94993575,104880.0,104870.0,0.24830009]
[1750196281303,0.94993575,104880.0,104870.0,0.20426009]
[1750196281538,0.94993575,104880.0,104870.0,0.24830009]
[1750196281962,0.94990849,104880.0,104870.0,0.24830009]
[1750196282800,0.91760849,104880.0,104870.0,0.24830009]
[1750196283416,0.78427249,104880.0,104870.0,0.24830009]
[1750196283635,0.91760849,104880.0,104870.0,0.24830009]
[1750196284899,0.91760279,104880.0,104870.0,0.24830009]
[1750196286617,0.57440279,104880.0,104870.0,0.24830009]
[1750196286828,0.73636279,104880.0,104870.0,0.24830009]
[1750196287245,0.73636279,104880.0,104870.0,0.28080009]
[1750196287463,0.7363598,104880.0,104870.0,0.31340009]
[1750196287673,0.73635492,104880.0,104870.0,0.31340009]
[1750196287902,0.72658666,104880.0,104870.0,0.31340009]
[1750196289719,0.82273588,104880.0,104870.0,0.31340009]
[1750196289933,0.84030138,104880.0,104870.0,0.31340009]
[1750196290160,0.74415216,104880.0,104870.0,0.31340009]
[1750196290592,0.74415351,104880.0,104870.0,0.31340009]
[1750196293427,0.71069281,104880.0,104870.0,0.31340009]
[1750196293643,0.74416018,104880.0,104870.0,0.31340009]
[1750196294077,0.72659468,104880.0,104870.0,0.31340009]
[1750196294722,0.74370731,104880.0,104870.0,0.31340009]
[1750196295789,0.74370937,104880.0,104870.0,0.31340009]
[1750196296429,0.74371091,104880.0,104870.0,0.31340009]
[1750196297076,1.14371091,104880.0,104870.0,0.31340009]
[1750196297290,1.14371091,104880.0,104870.0,0.10914]
[1750196298175,0.45301329,104880.0,104870.0,0.44877627]
[1750196298407,0.63823208,104880.0,104870.0,0.44877636]
[1750196298634,0.63823208,104880.0,104870.0,0.45831133]
[1750196298854,0.63823208,104880.0,104870.0,0.44877646]
[1750196299085,0.63823208,104880.0,104870.0,0.4392413]
[1750196299307,0.62869826,104880.0,104870.0,0.43924148]
[1750196300206,0.62869826,104880.0,104870.0,0.45831198]
[1750196301338,0.42846944,104880.0,104870.0,0.74941198]
[1750196301568,0.4284688,104880.0,104870.0,0.74941134]
[1750196301990,0.43800305,104880.0,104870.0,0.74941134]
[1750196302610,0.43800305,104880.0,104870.0,0.75141134]
[1750196302842,0.62869717,104880.0,104870.0,0.75141134]
[1750196303072,0.43800305,104880.0,104870.0,0.75341134]
[1750196303286,0.44753766,104880.0,104870.0,0.75341134]
[1750196303567,0.64776648,104880.0,104870.0,0.74387637]
[1750196304530,0.44753766,104880.0,104870.0,0.75341088]
[1750196305187,0.44753312,104880.0,104870.0,0.75341088]
[1750196305437,0.63822724,104880.0,104870.0,0.75341088]
[1750196305678,0.44753312,104880.0,104870.0,0.75341088]
[1750196305923,0.63822724,104880.0,104870.0,0.73434085]
[1750196306152,0.63822724,104880.0,104870.0,0.74387591]
[1750196306777,0.64776194,104880.0,104870.0,0.74387591]
[1750196307473,0.63822797,104880.0,104870.0,0.74387591]
[1750196308123,0.43861127,104880.0,104870.0,0.75341088]
[1750196308314,0.42907584,104880.0,104870.0,0.75341088]
[1750196308584,0.41954141,104880.0,104870.0,0.75341088]
[1750196309031,0.41892677,104880.0,104870.0,0.91529088]
[1750196309254,0.42846074,104880.0,104870.0,0.91529088]
[1750196309474,0.41892668,104880.0,104870.0,0.91529088]
[1750196309926,0.4093928,104880.0,104870.0,0.91529088]
[1750196310146,0.41892668,104880.0,104870.0,0.91529088]
[1750196310879,0.42846074,104880.0,104870.0,0.91529088]
[1750196311330,0.4093928,104880.0,104870.0,0.91529088]
[1750196312464,0.4093928,104880.0,104870.0,1.03376736]
[1750196312683,0.17476626,104880.0,104870.0,1.03376736]
[1750196312912,0.17476626,104880.0,104870.0,1.06210391]
[1750196315382,0.17476626,104880.0,104870.0,0.65252743]
[1750196315600,0.17476109,104880.0,104870.0,1.06210391]
[1750196316494,0.17476113,104880.0,104870.0,1.06210391]
[1750196316712,0.17476111,104880.0,104870.0,1.06210391]
[1750196317370,0.16584665,104880.0,104870.0,1.11210391]
[1750196318927,0.00846473,104900.0,104890.0,0.27957623]
[1750196319143,0.01737927,104900.0,104890.0,0.53761799]
[1750196319358,0.03644386,104900.0,104890.0,0.37581799]
[1750196319795,0.03644386,104900.0,104890.0,0.39294064]
[1750196320033,0.02798039,104900.0,104890.0,0.39294064]
[1750196322445,0.0279774,104900.0,104890.0,0.39294064]
[1750196323805,0.03750992,104900.0,104890.0,0.39294064]
[1750196324024,0.0279774,104900.0,104890.0,0.39294064]
[1750196324245,0.01844506,104900.0,104890.0,0.39294064]
[1750196324678,0.0279774,104900.0,104890.0,0.39294064]
[1750196325530,0.02797995,104900.0,104890.0,0.39294064]
[1750196325928,0.03751247,104900.0,104890.0,0.37581799]
[1750196326193,0.04704508,104900.0,104890.0,0.37581799]
[1750196326421,0.00891545,104900.0,104890.0,0.79972935]
[1750196326638,0.00891545,104900.0,104890.0,0.96148935]
[1750196326853,0.14618622,104930.0,104910.0,0.24691178]
[1750196327081,0.14012113,104930.0,104920.0,0.66829614]
[1750196327305,0.14012113,104930.0,104920.0,0.37292261]
[1750196327306,0.32119449,104930.0,104920.0,0.37292261]
[1750196327531,0.54972262,104900.0,104890.0,0.03141292]
[1750196327759,0.58160978,104900.0,104890.0,0.34088407]
[1750196327986,0.58160978,104900.0,104890.0,0.00047258]
[1750196327987,0.68976487,104900.0,104890.0,0.00047258]
[1750196328211,0.85148487,104900.0,104890.0,0.00047258]
[1750196328433,0.85148487,104900.0,104890.0,0.04443258]
[1750196328663,0.85817773,104900.0,104890.0,0.04443258]
[1750196328873,0.87602358,104900.0,104890.0,0.04422874]
[1750196329107,0.87602358,104900.0,104890.0,0.03822874]
[1750196329333,0.20976289,104880.0,104870.0,0.24354085]
[1750196329561,0.2186851,104880.0,104870.0,0.3842158]
[1750196329848,0.2186851,104880.0,104870.0,0.36967495]
[1750196330072,0.2186851,104880.0,104870.0,0.3842158]
[1750196330522,0.2186851,104880.0,104870.0,0.3862158]
[1750196330982,0.23653633,104880.0,104870.0,0.39575141]
[1750196331205,0.20915085,104880.0,104870.0,0.39775141]
[1750196331424,0.20022864,104880.0,104870.0,0.39775141]
[1750196331644,0.20915209,104880.0,104870.0,0.58846372]
[1750196331865,0.20915209,104880.0,104870.0,0.39775141]
[1750196332083,0.19069412,104880.0,104870.0,0.3882158]
[1750196332528,0.19961762,104880.0,104870.0,0.3882158]
[1750196332763,0.19961762,104880.0,104870.0,0.58846372]
[1750196333002,0.19069412,104880.0,104870.0,0.39775141]
[1750196333215,0.19069412,104880.0,104870.0,0.58846372]
[1750196333216,0.1996176,104880.0,104870.0,0.58846372]
[1750196333446,0.00892348,104880.0,104870.0,0.64926372]
[1750196333668,0.01845754,104880.0,104870.0,0.67786946]
[1750196333852,0.00892348,104880.0,104870.0,0.67786946]
[1750196334530,0.01845736,104880.0,104870.0,0.67786946]
[1750196334974,0.00892348,104880.0,104870.0,0.67786946]
[1750196335190,0.0286002,104890.0,104880.0,0.23383798]
[1750196335403,0.56473043,104900.0,104890.0,0.20020955]
[1750196335615,0.57365378,104900.0,104890.0,0.2964514]
[1750196335826,0.57365378,104900.0,104890.0,0.30598501]
[1750196336083,0.57365262,104900.0,104890.0,0.30598501]
[1750196336295,0.56411974,104900.0,104890.0,0.3402914]
[1750196337168,0.56411969,104900.0,104890.0,0.3402914]
[1750196337415,0.38299436,104900.0,104890.0,0.43789884]
[1750196337641,0.37752064,104900.0,104890.0,0.43789884]
[1750196337857,0.36798794,104900.0,104890.0,0.43789884]
[1750196338094,0.02798854,104900.0,104890.0,0.43789884]
[1750196338300,0.0184562,104900.0,104890.0,0.43789884]
[1750196338519,0.01845638,104900.0,104890.0,0.43789884]
[1750196338969,0.03752097,104900.0,104890.0,0.43989884]
[1750196339180,0.22817873,104900.0,104890.0,0.43989884]
[1750196339397,0.23771143,104900.0,104890.0,0.43989884]
[1750196339614,0.24724422,104900.0,104890.0,0.44189884]
[1750196340053,0.04705367,104900.0,104890.0,0.44189884]
[1750196340275,0.02798845,104900.0,104890.0,0.44189884]
[1750196340500,0.04705358,104900.0,104890.0,0.44189884]
[1750196340955,0.23771206,104900.0,104890.0,0.43236568]
[1750196341232,0.23771206,104900.0,104890.0,0.44189902]
[1750196342156,0.00892404,104900.0,104890.0,0.45143236]
[1750196342422,0.00892404,104900.0,104890.0,0.86064368]
[1750196342646,0.01906059,104920.0,104910.0,0.28133442]
[1750196342870,0.00891224,104920.0,104910.0,0.5296843]
[1750196343538,0.00891224,104920.0,104910.0,0.56143738]
[1750196343765,0.12167256,104930.0,104920.0,0.30538508]
[1750196343988,0.14011403,104930.0,104920.0,0.67450684]
[1750196344843,0.13058405,104930.0,104920.0,0.67450684]
[1750196345064,0.14011384,104930.0,104920.0,0.67450684]
[1750196345199,0.14964382,104930.0,104920.0,0.67450684]
[1750196345618,0.15917389,104930.0,104920.0,0.67450684]
[1750196345839,0.14964382,104930.0,104920.0,0.67450684]
[1750196346461,0.14073178,104930.0,104920.0,0.67450684]
[1750196346680,0.14963539,104930.0,104920.0,0.67450684]
[1750196347100,0.34023864,104930.0,104920.0,0.67450684]
[1750196347306,0.34023864,104930.0,104920.0,0.66497641]
[1750196347742,0.15916546,104930.0,104920.0,0.66497641]
[1750196348162,0.14963539,104930.0,104920.0,0.67450684]
[1750196348888,0.34976944,104930.0,104920.0,0.64320684]
[1750196349123,0.34976944,104930.0,104920.0,0.96460684]
[1750196349124,0.1665566,104930.0,104920.0,0.96460684]
[1750196349680,0.00953016,104930.0,104920.0,0.96460684]
[1750196350056,0.20013341,104930.0,104920.0,0.96460684]
[1750196350338,0.37685098,104940.0,104930.0,0.21467426]
[1750196350339,6e-05,104940.0,104930.0,0.21467426]
[1750196350571,6e-05,104940.0,104930.0,0.56276522]
[1750196350788,6e-05,104940.0,104930.0,0.97197654]
[1750196351009,6e-05,104940.0,104930.0,0.40120522]
[1750196351253,6e-05,104940.0,104930.0,0.60660522]
[1750196351471,6e-05,104940.0,104930.0,0.57630522]
[1750196351696,0.01911714,104940.0,104930.0,0.57630522]
[1750196352148,0.03817492,104940.0,104930.0,0.39882719]
[1750196352370,0.04770399,104940.0,104930.0,0.36742719]
[1750196352607,0.04770399,104940.0,104930.0,0.57278719]
[1750196352832,0.23828981,104940.0,104930.0,0.57278719]
[1750196353052,0.23828981,104940.0,104930.0,0.57478719]
[1750196353304,0.04770472,104940.0,104930.0,0.36942719]
[1750196353520,0.23828981,104940.0,104930.0,0.57678719]
[1750196353735,0.22876155,104940.0,104930.0,0.55772788]
[1750196353960,0.27069448,104940.0,104930.0,0.36189758]
[1750196354174,0.21923257,104940.0,104930.0,0.40573767]
[1750196354393,0.21923257,104940.0,104930.0,0.41526737]
[1750196354618,0.2407035,104940.0,104930.0,0.12816373]
[1750196354832,0.25847531,104940.0,104930.0,0.32920176]
[1750196355047,0.67557962,104940.0,104930.0,0.37304176]
[1750196355259,0.68224535,104940.0,104930.0,0.37304176]
[1750196355684,0.63734104,104940.0,104930.0,0.37304176]
[1750196356969,0.60514059,104940.0,104930.0,0.37304176]
[1750196357206,0.76662059,104940.0,104930.0,0.37304176]
[1750196357862,0.59847626,104940.0,104930.0,0.37304176]
[1750196358082,0.75995303,104940.0,104930.0,0.37304176]
[1750196359170,0.75995303,104940.0,104930.0,0.32920176]
[1750196359393,0.75995303,104940.0,104930.0,0.37304176]
[1750196359611,0.72895303,104940.0,104930.0,0.37304176]
[1750196360064,0.73561798,104940.0,104930.0,0.37304176]
[1750196360933,0.73562163,104940.0,104930.0,0.37304176]
[1750196361161,0.74451691,104940.0,104930.0,0.37304176]
[1750196361822,0.74451691,104940.0,104930.0,0.56364501]
[1750196363522,0.74451691,104940.0,104930.0,0.37304176]
[1750196363978,0.74447868,104940.0,104930.0,0.37304176]
[1750196364168,0.74447868,104940.0,104930.0,0.57317517]
[1750196365822,0.58303868,104940.0,104930.0,0.57317517]
[1750196366060,0.58303868,104940.0,104930.0,0.37304176]
[1750196366530,0.58303868,104940.0,104930.0,0.14408176]
[1750196366740,0.58310786,104940.0,104930.0,0.14408176]
[1750196369222,0.57642699,104940.0,104930.0,0.14408176]
[1750196369442,0.58311569,104940.0,104930.0,0.14408176]
[1750196369656,0.58313657,104940.0,104930.0,0.14408176]
[1750196370301,0.74453657,104940.0,104930.0,0.20598176]
[1750196370732,0.84068579,104940.0,104930.0,0.20598176]
[1750196370948,0.74453657,104940.0,104930.0,0.20598176]
[1750196371402,0.74454638,104940.0,104930.0,0.14408176]
[1750196371895,0.80684638,104940.0,104930.0,0.04772]
[1750196372532,0.80689751,104940.0,104930.0,0.004]
[1750196372762,0.80689751,104940.0,104930.0,0.04372]
[1750196373010,0.20013323,104930.0,104920.0,0.26006]
[1750196373233,0.23362724,104930.0,104920.0,0.40002176]
[1750196373672,0.23362779,104930.0,104920.0,0.12734176]
[1750196373918,0.23362854,104930.0,104920.0,0.40002176]
[1750196374155,0.23362854,104930.0,104920.0,0.12734176]
[1750196374394,0.23362854,104930.0,104920.0,0.40002176]
[1750196375096,0.23362854,104930.0,104920.0,0.40402176]
[1750196375351,0.33645137,104930.0,104920.0,0.13134176]
[1750196375586,0.3610134,104930.0,104920.0,0.40402176]
[1750196376055,0.26486418,104930.0,104920.0,0.16284176]
[1750196376320,0.23362734,104930.0,104920.0,0.43552176]
[1750196377529,0.40451723,104930.0,104920.0,0.63567416]
[1750196377760,0.40451322,104930.0,104920.0,0.63567416]
[1750196377990,0.40451322,104930.0,104920.0,0.64520504]
[1750196378232,0.39558146,104930.0,104920.0,0.65473583]
[1750196378467,0.40451163,104930.0,104920.0,0.66426653]
[1750196380657,0.50066085,104930.0,104920.0,0.66426653]
[1750196380898,0.40451163,104930.0,104920.0,0.66426653]
[1750196381105,0.37995329,104930.0,104920.0,0.66426653]
[1750196381292,0.40451071,104930.0,104920.0,0.66426653]
[1750196383843,0.40451503,104930.0,104920.0,0.66426653]
[1750196384581,0.40451503,104930.0,104920.0,0.67379714]
[1750196386127,0.40451503,104930.0,104920.0,0.67379668]
[1750196387006,0.40453885,104930.0,104920.0,0.67379668]
[1750196388491,0.40453874,104930.0,104920.0,0.67379668]
[1750196389953,0.40453869,104930.0,104920.0,0.66426616]
[1750196390967,0.40453869,104930.0,104920.0,0.62054616]
[1750196391166,0.40453869,104930.0,104920.0,0.66426616]
[1750196391579,0.40453869,104930.0,104920.0,0.67379668]
[1750196392455,0.21393544,104930.0,104920.0,0.67379623]
[1750196392875,0.21393656,104930.0,104920.0,0.67379623]
[1750196393293,0.19665344,104930.0,104920.0,0.67379623]
[1750196393499,0.4140707,104930.0,104920.0,0.67379623]
[1750196393704,0.42360085,104930.0,104920.0,0.67379623]
[1750196393924,0.22346744,104930.0,104920.0,0.67379623]
[1750196394792,0.06210624,104930.0,104920.0,0.67379623]
[1750196395421,0.05257645,104930.0,104920.0,0.67379623]
[1750196395840,0.06210624,104930.0,104920.0,0.67379623]
[1750196396051,0.05540274,104930.0,104920.0,0.67379623]
[1750196396275,0.05540289,104930.0,104920.0,0.67379623]
[1750196396696,0.0716365,104930.0,104920.0,0.67379623]
[1750196396904,0.07446294,104930.0,104920.0,0.67379623]
[1750196397115,0.08116665,104930.0,104920.0,0.67379623]
[1750196397520,0.07163658,104930.0,104920.0,0.67379623]
[1750196397729,0.0621066,104930.0,104920.0,0.67379623]
[1750196397940,0.05540289,104930.0,104920.0,0.67379623]
[1750196398149,0.06493287,104930.0,104920.0,0.67379623]
[1750196398568,0.05540289,104930.0,104920.0,0.67379623]
[1750196398787,0.0649333,104930.0,104920.0,0.67379623]
[1750196398997,0.0470572,104930.0,104920.0,0.67379623]
[1750196399204,0.06493416,104930.0,104920.0,0.67379623]
[1750196400258,0.02681544,104930.0,104920.0,0.68833708]
[1750196400483,0.03634487,104930.0,104920.0,0.68833708]
[1750196400696,0.04587448,104930.0,104920.0,0.68833708]
[1750196400907,0.05540427,104930.0,104920.0,0.68833708]
[1750196401087,0.04587448,104930.0,104920.0,0.68833708]
[1750196401328,0.05540427,104930.0,104920.0,0.68833708]
[1750196401540,0.04587448,104930.0,104920.0,0.68833708]
[1750196401746,0.05540437,104930.0,104920.0,0.68833708]
[1750196401951,0.05540344,104930.0,104920.0,0.68833708]
[1750196402249,0.05540334,104930.0,104920.0,0.68833708]
[1750196402851,0.02681456,104930.0,104920.0,0.68833708]
[1750196403070,0.04587315,104930.0,104920.0,0.68833708]
[1750196403550,0.05540304,104930.0,104920.0,0.68833708]
[1750196404022,0.06493302,104930.0,104920.0,0.68833708]
[1750196404278,0.0554021,104930.0,104920.0,0.68833708]
[1750196404697,0.06493217,104930.0,104920.0,0.68833708]
[1750196405730,0.04587221,104930.0,104920.0,0.68833708]
[1750196406190,0.0554021,104930.0,104920.0,0.68833708]
[1750196406996,0.04587221,104930.0,104920.0,0.68833708]
[1750196407201,0.0554021,104930.0,104920.0,0.68833708]
[1750196407615,0.05540606,104930.0,104920.0,0.68833708]
[1750196408235,0.0554056,104930.0,104920.0,0.68833708]
[1750196408642,0.06493558,104930.0,104920.0,0.68833708]
[1750196410453,0.0649357,104930.0,104920.0,0.68833708]
[1750196411100,0.0649357,104930.0,104920.0,0.97943708]
[1750196411308,0.05540572,104930.0,104920.0,0.97943708]
[1750196411516,0.0649357,104930.0,104920.0,0.97943708]
[1750196413212,0.06493602,104930.0,104920.0,0.97943708]
[1750196414339,0.05540604,104930.0,104920.0,0.97943708]
[1750196415235,0.06493602,104930.0,104920.0,0.97943708]
[1750196416269,0.06493639,104930.0,104920.0,0.97943708]
[1750196416803,0.01846922,104930.0,104920.0,0.97943708]
[1750196417008,0.00952998,104930.0,104920.0,0.97943663]
[1750196417723,0.01906005,104930.0,104920.0,0.97943663]
[1750196419585,0.21919319,104930.0,104920.0,0.96990629]
[1750196419825,0.22872335,104930.0,104920.0,0.96990629]
[1750196420453,0.23825305,104930.0,104920.0,0.96037586]
[1750196421204,0.22872335,104930.0,104920.0,0.96037586]
[1750196422098,0.20966348,104930.0,104920.0,0.66386176]
[1750196422299,0.21636876,104930.0,104920.0,0.66386176]
[1750196422904,0.21636876,104930.0,104920.0,0.37276176]
[1750196423115,0.21636876,104930.0,104920.0,0.57291425]
[1750196424109,0.21636876,104930.0,104920.0,0.38229283]
[1750196424314,0.21636876,104930.0,104920.0,0.41559283]
[1750196425101,0.21636859,104930.0,104920.0,0.41559283]
[1750196425541,0.21636859,104930.0,104920.0,0.60621425]
[1750196426391,0.21636859,104930.0,104920.0,0.41559283]
[1750196426810,0.21636859,104930.0,104920.0,0.60621425]
[1750196427012,0.21636859,104930.0,104920.0,0.63861425]
[1750196427216,0.21636859,104930.0,104920.0,0.64814523]
[1750196427651,0.20966348,104930.0,104920.0,0.64814523]
[1750196428218,0.20966348,104930.0,104920.0,0.65767611]
[1750196428841,0.20966348,104930.0,104920.0,0.6672069]
[1750196429170,0.23648115,104930.0,104920.0,0.6672069]